[Event "Live Chess"]
[Site "Chess.com"]
[Date "2010.12.30"]
[Round "-"]
[White "hipposcottimus"]
[Black "ediver48"]
[Result "0-1"]
[CurrentPosition "8/5N2/1p6/p1pk3p/P4p1b/3K4/8/8 w - -"]
[Timezone "UTC"]
[ECO "C41"]
[ECOUrl "https://www.chess.com/openings/Philidor-Defense-Exchange-Variation-4.Nxd4"]
[UTCDate "2010.12.30"]
[UTCTime "02:50:26"]
[WhiteElo "1348"]
[BlackElo "1389"]
[TimeControl "600+5"]
[Termination "ediver48 won on time"]
[StartTime "02:50:26"]
[EndDate "2010.12.30"]
[EndTime "03:12:33"]
[Link "https://www.chess.com/game/live/82378791"]

1. e4 {[%clk 0:10:00]} 1... e5 {[%clk 0:10:00]} 2. Nf3 {[%clk 0:09:56.9]} 2... d6 {[%clk 0:10:00.2]} 3. d4 {[%clk 0:09:59.5]} 3... exd4 {[%clk 0:10:00.5]} 4. Nxd4 {[%clk 0:09:58.8]} 4... Be7 {[%clk 0:10:01.8]} 5. Nc3 {[%clk 0:09:55.5]} 5... c6 {[%clk 0:09:58.7]} 6. Bd3 {[%clk 0:09:54.6]} 6... Nf6 {[%clk 0:09:57.2]} 7. O-O {[%clk 0:09:54.1]} 7... Bg4 {[%clk 0:09:56.1]} 8. Qe1 {[%clk 0:09:53.3]} 8... Nbd7 {[%clk 0:09:53.7]} 9. f3 {[%clk 0:09:53.3]} 9... Bh5 {[%clk 0:09:53.3]} 10. f4 {[%clk 0:09:52]} 10... Bg4 {[%clk 0:09:48.9]} 11. e5 {[%clk 0:07:42.6]} 11... dxe5 {[%clk 0:09:47.9]} 12. fxe5 {[%clk 0:07:44.4]} 12... Nd5 {[%clk 0:09:47.5]} 13. Bf5 {[%clk 0:07:37]} 13... Bxf5 {[%clk 0:09:46.3]} 14. Rxf5 {[%clk 0:07:31.3]} 14... O-O {[%clk 0:08:59.1]} 15. Rh5 {[%clk 0:07:23.1]} 15... Nc5 {[%clk 0:08:45.8]} 16. Qg3 {[%clk 0:07:21.5]} 16... Ne6 {[%clk 0:08:32.1]} 17. Bh6 {[%clk 0:07:06.5]} 17... g6 {[%clk 0:08:23.5]} 18. Nxe6 {[%clk 0:07:05.1]} 18... fxe6 {[%clk 0:08:23.1]} 19. Bxf8 {[%clk 0:07:01.7]} 19... Bxf8 {[%clk 0:08:21.2]} 20. Rf1 {[%clk 0:06:56.7]} 20... Bg7 {[%clk 0:08:18.8]} 21. Rh4 {[%clk 0:06:43.1]} 21... Ne7 {[%clk 0:08:16.4]} 22. Ne4 {[%clk 0:06:36.8]} 22... Nf5 {[%clk 0:08:16.1]} 23. Rxf5 {[%clk 0:06:31.2]} 23... exf5 {[%clk 0:08:16.4]} 24. Ng5 {[%clk 0:06:21.2]} 24... Qd1+ {[%clk 0:08:01.3]} 25. Kf2 {[%clk 0:06:20.2]} 25... Qxc2+ {[%clk 0:07:46.2]} 26. Kg1 {[%clk 0:06:14.9]} 26... Qc1+ {[%clk 0:07:34.7]} 27. Kf2 {[%clk 0:05:53.7]} 27... Qxb2+ {[%clk 0:07:26.6]} 28. Kf3 {[%clk 0:05:56.3]} 28... Qc3+ {[%clk 0:07:17.8]} 29. Kf4 {[%clk 0:05:58.5]} 29... Qxe5+ {[%clk 0:07:09.9]} 30. Kf3 {[%clk 0:05:54.8]} 30... Qxg3+ {[%clk 0:07:01.1]} 31. Kxg3 {[%clk 0:05:57.7]} 31... h5 {[%clk 0:07:00.2]} 32. Rb4 {[%clk 0:05:37.1]} 32... b6 {[%clk 0:06:57.5]} 33. a4 {[%clk 0:05:39.1]} 33... c5 {[%clk 0:06:51]} 34. Rc4 {[%clk 0:05:31.9]} 34... Bd4 {[%clk 0:06:47.4]} 35. Ne6 {[%clk 0:05:33.2]} 35... Be5+ {[%clk 0:06:21.3]} 36. Kh3 {[%clk 0:05:35.4]} 36... Kf7 {[%clk 0:06:14]} 37. Ng5+ {[%clk 0:04:41.6]} 37... Kf6 {[%clk 0:06:10.9]} 38. Nh7+ {[%clk 0:04:41.8]} 38... Kg7 {[%clk 0:06:10.7]} 39. Ng5 {[%clk 0:04:45.4]} 39... Re8 {[%clk 0:06:06.8]} 40. Nf3 {[%clk 0:04:45.4]} 40... a5 {[%clk 0:05:44.8]} 41. Kh4 {[%clk 0:04:23.4]} 41... Bf6+ {[%clk 0:05:23.8]} 42. Kh3 {[%clk 0:04:23.7]} 42... Re4 {[%clk 0:05:21.6]} 43. Nd2 {[%clk 0:04:18.9]} 43... Re3+ {[%clk 0:05:14.2]} 44. g3 {[%clk 0:03:55.4]} 44... Rd3 {[%clk 0:05:13.4]} 45. Nf1 {[%clk 0:03:42.2]} 45... Rd4 {[%clk 0:05:04.4]} 46. Ne3 {[%clk 0:03:37.8]} 46... Rxc4 {[%clk 0:05:02.9]} 47. Nxc4 {[%clk 0:03:39.5]} 47... Bd8 {[%clk 0:05:02.6]} 48. Kg2 {[%clk 0:03:39.5]} 48... Kf6 {[%clk 0:05:01.6]} 49. Kf3 {[%clk 0:03:42.9]} 49... g5 {[%clk 0:05:01.5]} 50. Ke3 {[%clk 0:03:46.1]} 50... Ke6 {[%clk 0:04:57.1]} 51. h3 {[%clk 0:03:46.3]} 51... Kd5 {[%clk 0:04:57.9]} 52. Kd3 {[%clk 0:03:46.3]} 52... f4 {[%clk 0:04:47]} 53. gxf4 {[%clk 0:03:36.3]} 53... gxf4 {[%clk 0:04:47.2]} 54. Nd2 {[%clk 0:03:39.3]} 54... Bg5 {[%clk 0:04:43.2]} 55. Nc4 {[%clk 0:03:40.9]} 55... Kc6 {[%clk 0:04:36.5]} 56. Ne5+ {[%clk 0:03:36.4]} 56... Kd5 {[%clk 0:04:30.2]} 57. Nf7 {[%clk 0:03:38.2]} 57... Bf6 {[%clk 0:04:27.9]} 58. h4 {[%clk 0:03:40.5]} 58... Bxh4 {[%clk 0:04:22.1]} 0-1

[Event "Live Chess"]
[Site "Chess.com"]
[Date "2010.12.30"]
[Round "-"]
[White "hipposcottimus"]
[Black "Renesacha"]
[Result "0-1"]
[CurrentPosition "r1k1B3/3p2p1/pQ3pNp/1ppb4/8/6P1/P5qP/4R2K w - -"]
[Timezone "UTC"]
[ECO "B20"]
[ECOUrl "https://www.chess.com/openings/Sicilian-Defense"]
[UTCDate "2010.12.30"]
[UTCTime "02:20:33"]
[WhiteElo "1363"]
[BlackElo "1327"]
[TimeControl "300+5"]
[Termination "Renesacha won by checkmate"]
[StartTime "02:20:33"]
[EndDate "2010.12.30"]
[EndTime "02:31:45"]
[Link "https://www.chess.com/game/live/82373772"]

1. e4 {[%clk 0:05:00]} 1... c5 {[%clk 0:05:00]} 2. Bb5 {[%clk 0:04:56.9]} 2... a6 {[%clk 0:04:56.6]} 3. Be2 {[%clk 0:04:53.3]} 3... Nc6 {[%clk 0:04:43.7]} 4. Nf3 {[%clk 0:04:57.4]} 4... e6 {[%clk 0:04:03.7]} 5. d4 {[%clk 0:04:49.8]} 5... b5 {[%clk 0:03:54.7]} 6. d5 {[%clk 0:04:43.8]} 6... exd5 {[%clk 0:03:33.4]} 7. exd5 {[%clk 0:04:33.5]} 7... Nce7 {[%clk 0:03:17.5]} 8. d6 {[%clk 0:04:24]} 8... Nf5 {[%clk 0:03:20.2]} 9. Bf4 {[%clk 0:04:18]} 9... h6 {[%clk 0:03:18.8]} 10. Bg3 {[%clk 0:04:05.1]} 10... Qf6 {[%clk 0:02:52.8]} 11. Be5 {[%clk 0:04:03.2]} 11... Qe6 {[%clk 0:02:45.4]} 12. Nc3 {[%clk 0:03:58.1]} 12... f6 {[%clk 0:02:45.1]} 13. Bg3 {[%clk 0:03:52.2]} 13... Nxg3 {[%clk 0:01:58]} 14. fxg3 {[%clk 0:03:52.5]} 14... Bxd6 {[%clk 0:01:59.4]} 15. O-O {[%clk 0:03:56.7]} 15... Bb7 {[%clk 0:01:57.4]} 16. Nh4 {[%clk 0:03:56.7]} 16... Ne7 {[%clk 0:01:55.2]} 17. Bh5+ {[%clk 0:03:54.9]} 17... Kd8 {[%clk 0:01:49.5]} 18. Re1 {[%clk 0:03:51.6]} 18... Qc4 {[%clk 0:01:32.5]} 19. Qxd6 {[%clk 0:03:49.7]} 19... Nd5 {[%clk 0:00:43.6]} 20. Nxd5 {[%clk 0:03:32.2]} 20... Bxd5 {[%clk 0:00:42.5]} 21. Qb6+ {[%clk 0:03:18.6]} 21... Kc8 {[%clk 0:00:39.6]} 22. Re8+ {[%clk 0:03:17.4]} 22... Rxe8 {[%clk 0:00:41.7]} 23. Bxe8 {[%clk 0:03:20.3]} 23... Qd4+ {[%clk 0:00:37.9]} 24. Kh1 {[%clk 0:03:17.6]} 24... Qxb2 {[%clk 0:00:27.1]} 25. Re1 {[%clk 0:03:05.9]} 25... Qxc2 {[%clk 0:00:28.1]} 26. Ng6 {[%clk 0:02:51.8]} 26... Qxg2# {[%clk 0:00:30.1]} 0-1

[Event "Live Chess"]
[Site "Chess.com"]
[Date "2010.12.30"]
[Round "-"]
[White "hipposcottimus"]
[Black "yankz"]
[Result "1-0"]
[CurrentPosition "1r4k1/p3np1p/1p3qp1/1P1p1b2/NP1P2P1/8/P2QR1BP/5RK1 b - -"]
[Timezone "UTC"]
[ECO "C40"]
[ECOUrl "https://www.chess.com/openings/Kings-Pawn-Opening-Kings-Knight-Busch-Gass-Gambit-3.Nxe5"]
[UTCDate "2010.12.30"]
[UTCTime "02:04:38"]
[WhiteElo "1372"]
[BlackElo "1382"]
[TimeControl "600"]
[Termination "hipposcottimus won by resignation"]
[StartTime "02:04:38"]
[EndDate "2010.12.30"]
[EndTime "02:14:19"]
[Link "https://www.chess.com/game/live/82370476"]

1. e4 {[%clk 0:10:00]} 1... e5 {[%clk 0:10:00]} 2. Nf3 {[%clk 0:09:57.3]} 2... Bc5 {[%clk 0:09:57.7]} 3. Nxe5 {[%clk 0:09:42.3]} 3... Bxf2+ {[%clk 0:09:51.3]} 4. Kxf2 {[%clk 0:09:35.1]} 4... Qh4+ {[%clk 0:09:48.7]} 5. g3 {[%clk 0:09:26.1]} 5... Qxe4 {[%clk 0:09:45.8]} 6. Nf3 {[%clk 0:09:20.9]} 6... Ne7 {[%clk 0:09:34.9]} 7. d3 {[%clk 0:09:13.2]} 7... Qc6 {[%clk 0:09:32]} 8. Bg2 {[%clk 0:09:10.9]} 8... Qb6+ {[%clk 0:09:23.8]} 9. d4 {[%clk 0:09:05.2]} 9... O-O {[%clk 0:09:20.3]} 10. Re1 {[%clk 0:09:02.7]} 10... Re8 {[%clk 0:09:17.1]} 11. Kg1 {[%clk 0:09:01.8]} 11... d5 {[%clk 0:09:11.4]} 12. Be3 {[%clk 0:09:00.3]} 12... Be6 {[%clk 0:09:06.7]} 13. b3 {[%clk 0:08:51.2]} 13... Nbc6 {[%clk 0:09:04.9]} 14. Nc3 {[%clk 0:08:44.8]} 14... Rad8 {[%clk 0:08:59.9]} 15. Na4 {[%clk 0:08:32.8]} 15... Qb4 {[%clk 0:08:45.5]} 16. c3 {[%clk 0:08:19.7]} 16... Qd6 {[%clk 0:08:41.7]} 17. Nc5 {[%clk 0:08:16.1]} 17... Bc8 {[%clk 0:08:34.9]} 18. Ng5 {[%clk 0:07:53.7]} 18... b6 {[%clk 0:08:26]} 19. Qd3 {[%clk 0:07:44.6]} 19... g6 {[%clk 0:08:12.9]} 20. Bf4 {[%clk 0:07:29.5]} 20... Qf6 {[%clk 0:08:06.7]} 21. Bxc7 {[%clk 0:06:58.5]} 21... Qxg5 {[%clk 0:07:59.4]} 22. Bxd8 {[%clk 0:06:48.5]} 22... Nxd8 {[%clk 0:07:58.7]} 23. Re5 {[%clk 0:06:34.9]} 23... Qf6 {[%clk 0:07:52.9]} 24. Na4 {[%clk 0:06:26.6]} 24... Ndc6 {[%clk 0:07:50.3]} 25. Re2 {[%clk 0:06:09.3]} 25... Bd7 {[%clk 0:07:41]} 26. Rf1 {[%clk 0:06:00.7]} 26... Qg7 {[%clk 0:07:38.9]} 27. b4 {[%clk 0:05:14.8]} 27... Rb8 {[%clk 0:07:16.8]} 28. b5 {[%clk 0:05:11.1]} 28... Bf5 {[%clk 0:07:01.1]} 29. Qd2 {[%clk 0:04:36.3]} 29... Nb4 {[%clk 0:06:25.3]} 30. cxb4 {[%clk 0:04:25.3]} 30... Qf6 {[%clk 0:06:17.2]} 31. g4 {[%clk 0:04:17.9]} 1-0

[Event "Live Chess"]
[Site "Chess.com"]
[Date "2010.12.30"]
[Round "-"]
[White "hipposcottimus"]
[Black "banzhaf"]
[Result "0-1"]
[CurrentPosition "8/1pR5/2b2k2/p5p1/2P5/2q1K3/3r4/8 w - -"]
[Timezone "UTC"]
[ECO "C55"]
[ECOUrl "https://www.chess.com/openings/Scotch-Game-Scotch-Gambit-Dubois-Reti-Perreux-Variation-5...d5-6.exd5"]
[UTCDate "2010.12.30"]
[UTCTime "01:40:40"]
[WhiteElo "1363"]
[BlackElo "1282"]
[TimeControl "300+5"]
[Termination "banzhaf won by checkmate"]
[StartTime "01:40:40"]
[EndDate "2010.12.30"]
[EndTime "01:58:16"]
[Link "https://www.chess.com/game/live/82365164"]

1. e4 {[%clk 0:05:00]} 1... e5 {[%clk 0:05:00]} 2. Nf3 {[%clk 0:05:01.3]} 2... Nc6 {[%clk 0:05:03]} 3. Bc4 {[%clk 0:04:56.1]} 3... Nf6 {[%clk 0:05:04]} 4. d4 {[%clk 0:04:51.1]} 4... exd4 {[%clk 0:05:00.7]} 5. Ng5 {[%clk 0:04:41.9]} 5... d5 {[%clk 0:04:59.1]} 6. exd5 {[%clk 0:04:35.8]} 6... Ne5 {[%clk 0:04:54.9]} 7. Qxd4 {[%clk 0:04:29.3]} 7... Bd6 {[%clk 0:04:58.3]} 8. O-O {[%clk 0:04:22.8]} 8... O-O {[%clk 0:04:58.1]} 9. Nc3 {[%clk 0:04:16.4]} 9... Nxc4 {[%clk 0:05:01.3]} 10. Qxc4 {[%clk 0:04:13.2]} 10... h6 {[%clk 0:05:04]} 11. Nge4 {[%clk 0:04:07]} 11... Nxe4 {[%clk 0:05:05.5]} 12. Nxe4 {[%clk 0:03:48.2]} 12... Be7 {[%clk 0:04:37.1]} 13. Bf4 {[%clk 0:03:40.6]} 13... Bd6 {[%clk 0:04:17.6]} 14. Be3 {[%clk 0:03:20.4]} 14... Re8 {[%clk 0:03:58.8]} 15. Rad1 {[%clk 0:03:13.5]} 15... a6 {[%clk 0:03:43.2]} 16. Qd3 {[%clk 0:03:03.4]} 16... Bf5 {[%clk 0:03:33]} 17. f3 {[%clk 0:03:02.1]} 17... Qe7 {[%clk 0:03:09]} 18. Rfe1 {[%clk 0:02:21.6]} 18... Qe5 {[%clk 0:03:08.2]} 19. f4 {[%clk 0:02:10.4]} 19... Qxe4 {[%clk 0:03:02.5]} 20. Qc3 {[%clk 0:02:08.5]} 20... Qb4 {[%clk 0:02:49]} 21. Bd4 {[%clk 0:01:43.7]} 21... Rxe1+ {[%clk 0:02:35.5]} 22. Rxe1 {[%clk 0:01:45.7]} 22... Qxc3 {[%clk 0:02:38.6]} 23. Bxc3 {[%clk 0:01:49.7]} 23... Bxf4 {[%clk 0:02:41.3]} 24. b3 {[%clk 0:01:50.2]} 24... Rd8 {[%clk 0:02:36.9]} 25. Bb2 {[%clk 0:01:43.1]} 25... Rxd5 {[%clk 0:02:37.7]} 26. c4 {[%clk 0:01:40]} 26... Rd2 {[%clk 0:02:37.6]} 27. Bc1 {[%clk 0:01:43.3]} 27... Rd4 {[%clk 0:02:33.8]} 28. Bb2 {[%clk 0:01:47]} 28... Re4 {[%clk 0:02:34.9]} 29. Rf1 {[%clk 0:01:49.3]} 29... g5 {[%clk 0:02:31.7]} 30. g3 {[%clk 0:01:51.8]} 30... Be3+ {[%clk 0:02:34.2]} 31. Kg2 {[%clk 0:01:52.3]} 31... Be6 {[%clk 0:02:25.8]} 32. Kf3 {[%clk 0:01:47.4]} 32... f5 {[%clk 0:02:16.2]} 33. g4 {[%clk 0:01:45.2]} 33... Rxg4 {[%clk 0:01:54.6]} 34. Kxe3 {[%clk 0:01:45.8]} 34... Re4+ {[%clk 0:01:58.1]} 35. Kd3 {[%clk 0:01:45.3]} 35... Rh4 {[%clk 0:01:57.5]} 36. Re1 {[%clk 0:01:40.6]} 36... Rh3+ {[%clk 0:01:44.9]} 37. Kc2 {[%clk 0:01:35.4]} 37... Rxh2+ {[%clk 0:01:47.1]} 38. Kc1 {[%clk 0:01:39.6]} 38... Bd7 {[%clk 0:01:30.7]} 39. Re7 {[%clk 0:01:42.1]} 39... Bc6 {[%clk 0:01:30.8]} 40. Rxc7 {[%clk 0:01:45.3]} 40... Rh1+ {[%clk 0:01:24.9]} 41. Kd2 {[%clk 0:01:46.7]} 41... Rh2+ {[%clk 0:01:25.4]} 42. Kc3 {[%clk 0:01:47.2]} 42... Rh3+ {[%clk 0:01:24.2]} 43. Kb4 {[%clk 0:01:50.1]} 43... Rh2 {[%clk 0:01:21]} 44. Ka3 {[%clk 0:01:49]} 44... Re2 {[%clk 0:01:10.9]} 45. Rg7+ {[%clk 0:01:45.3]} 45... Kf8 {[%clk 0:01:13.2]} 46. Rg6 {[%clk 0:01:46.4]} 46... f4 {[%clk 0:01:02.9]} 47. Rxh6 {[%clk 0:01:48.4]} 47... f3 {[%clk 0:00:59.1]} 48. Rg6 {[%clk 0:01:46]} 48... Rg2 {[%clk 0:00:52.4]} 49. Bg7+ {[%clk 0:01:38.9]} 49... Kf7 {[%clk 0:00:55]} 50. Rf6+ {[%clk 0:01:37.7]} 50... Kxg7 {[%clk 0:00:58.7]} 51. Rd6 {[%clk 0:01:39.2]} 51... f2 {[%clk 0:01:00.8]} 52. Rd2 {[%clk 0:01:37.5]} 52... f1=Q {[%clk 0:01:02.6]} 53. Rd6 {[%clk 0:01:41.7]} 53... Qf2 {[%clk 0:00:58.3]} 54. Kb4 {[%clk 0:01:41.2]} 54... Qxa2 {[%clk 0:00:57.1]} 55. Re6 {[%clk 0:01:44]} 55... a5+ {[%clk 0:00:52.4]} 56. Kc5 {[%clk 0:01:45.8]} 56... Qxb3 {[%clk 0:00:52.8]} 57. Re7+ {[%clk 0:01:48.6]} 57... Kf6 {[%clk 0:00:55.9]} 58. Rc7 {[%clk 0:01:51.7]} 58... Qb4+ {[%clk 0:00:58.7]} 59. Kd4 {[%clk 0:01:48.6]} 59... Rd2+ {[%clk 0:01:01.8]} 60. Ke3 {[%clk 0:01:50.2]} 60... Qc3# {[%clk 0:01:04.4]} 0-1

[Event "Live Chess"]
[Site "Chess.com"]
[Date "2010.12.30"]
[Round "-"]
[White "cerecedes"]
[Black "hipposcottimus"]
[Result "0-1"]
[CurrentPosition "6k1/pp5p/4p1p1/8/1P6/3b2NP/q2r3P/K3R2R w - -"]
[Timezone "UTC"]
[ECO "C23"]
[ECOUrl "https://www.chess.com/openings/Bishops-Opening-2...Nc6"]
[UTCDate "2010.12.30"]
[UTCTime "01:28:27"]
[WhiteElo "1341"]
[BlackElo "1372"]
[TimeControl "360"]
[Termination "hipposcottimus won by checkmate"]
[StartTime "01:28:27"]
[EndDate "2010.12.30"]
[EndTime "01:37:18"]
[Link "https://www.chess.com/game/live/82362648"]

1. e4 {[%clk 0:06:00]} 1... e5 {[%clk 0:06:00]} 2. Bc4 {[%clk 0:05:58.9]} 2... Nc6 {[%clk 0:05:56.9]} 3. c3 {[%clk 0:05:56.9]} 3... Nf6 {[%clk 0:05:54.5]} 4. Qf3 {[%clk 0:05:53.5]} 4... d5 {[%clk 0:05:42.1]} 5. exd5 {[%clk 0:05:51.2]} 5... e4 {[%clk 0:05:40.3]} 6. Qe2 {[%clk 0:05:49.1]} 6... Ne7 {[%clk 0:05:37]} 7. d3 {[%clk 0:05:43.4]} 7... Nexd5 {[%clk 0:05:24.1]} 8. dxe4 {[%clk 0:05:41.5]} 8... Nf4 {[%clk 0:05:23.1]} 9. Qf3 {[%clk 0:05:37.1]} 9... Ne6 {[%clk 0:05:06.8]} 10. e5 {[%clk 0:05:32.8]} 10... Nd7 {[%clk 0:04:56.5]} 11. Bxe6 {[%clk 0:05:23.7]} 11... fxe6 {[%clk 0:04:45.6]} 12. Qh5+ {[%clk 0:05:19.2]} 12... g6 {[%clk 0:04:37]} 13. Qh3 {[%clk 0:04:59]} 13... Nxe5 {[%clk 0:04:14.5]} 14. Ne2 {[%clk 0:04:57.8]} 14... Nd3+ {[%clk 0:04:10]} 15. Kd2 {[%clk 0:04:49.2]} 15... Nxf2+ {[%clk 0:04:08]} 16. Ke1 {[%clk 0:04:37.7]} 16... Nxh3 {[%clk 0:04:02.1]} 17. gxh3 {[%clk 0:04:36.5]} 17... Bc5 {[%clk 0:03:53.6]} 18. Bf4 {[%clk 0:04:32.6]} 18... Bd7 {[%clk 0:03:48.1]} 19. Nd2 {[%clk 0:04:31.8]} 19... Bb5 {[%clk 0:03:42.2]} 20. Ng3 {[%clk 0:04:23.2]} 20... Qh4 {[%clk 0:03:35.9]} 21. Bxc7 {[%clk 0:04:15.9]} 21... O-O {[%clk 0:03:16.6]} 22. Nf3 {[%clk 0:04:15.1]} 22... Rxf3 {[%clk 0:03:00.3]} 23. Kd2 {[%clk 0:04:08]} 23... Rd3+ {[%clk 0:02:38]} 24. Kc2 {[%clk 0:04:06.1]} 24... Rad8 {[%clk 0:02:08.9]} 25. Bxd8 {[%clk 0:03:57.2]} 25... Qxd8 {[%clk 0:01:54]} 26. Rac1 {[%clk 0:03:42.6]} 26... Rd2+ {[%clk 0:01:20.2]} 27. Kb1 {[%clk 0:03:40.8]} 27... Bd3+ {[%clk 0:01:10]} 28. Ka1 {[%clk 0:03:38.5]} 28... Qb6 {[%clk 0:01:08.5]} 29. b3 {[%clk 0:03:34.2]} 29... Ba3 {[%clk 0:00:49.5]} 30. Rce1 {[%clk 0:03:27.2]} 30... Qa5 {[%clk 0:00:44.5]} 31. b4 {[%clk 0:03:09.7]} 31... Bxb4 {[%clk 0:00:21.8]} 32. cxb4 {[%clk 0:03:06.2]} 32... Qxa2# {[%clk 0:00:19]} 0-1

[Event "Live Chess"]
[Site "Chess.com"]
[Date "2010.12.30"]
[Round "-"]
[White "hipposcottimus"]
[Black "Herik"]
[Result "1-0"]
[CurrentPosition "r1q1kb1r/1b1p1pp1/p3p2p/3P4/4PB2/1QN2N2/PP3PPP/R3R1K1 b kq -"]
[Timezone "UTC"]
[ECO "B12"]
[ECOUrl "https://www.chess.com/openings/Caro-Kann-Defense-2.d4"]
[UTCDate "2010.12.30"]
[UTCTime "01:24:30"]
[WhiteElo "1372"]
[BlackElo "1127"]
[TimeControl "240+4"]
[Termination "hipposcottimus won by resignation"]
[StartTime "01:24:30"]
[EndDate "2010.12.30"]
[EndTime "01:26:59"]
[Link "https://www.chess.com/game/live/82361815"]

1. e4 {[%clk 0:04:00]} 1... c6 {[%clk 0:04:00]} 2. d4 {[%clk 0:03:57.4]} 2... b5 {[%clk 0:04:02.9]} 3. c4 {[%clk 0:03:48.2]} 3... Bb7 {[%clk 0:04:06.2]} 4. cxb5 {[%clk 0:03:38.9]} 4... cxb5 {[%clk 0:04:09.3]} 5. Bxb5 {[%clk 0:03:42.4]} 5... a6 {[%clk 0:04:12.8]} 6. Bd3 {[%clk 0:03:43]} 6... Qc8 {[%clk 0:04:15.8]} 7. Nf3 {[%clk 0:03:46.1]} 7... e6 {[%clk 0:04:18.6]} 8. Nc3 {[%clk 0:03:49.8]} 8... h6 {[%clk 0:04:20]} 9. O-O {[%clk 0:03:51]} 9... Nc6 {[%clk 0:04:19.8]} 10. Re1 {[%clk 0:03:54.7]} 10... Nb4 {[%clk 0:04:21.4]} 11. Bc2 {[%clk 0:03:54.8]} 11... Nxc2 {[%clk 0:04:17.1]} 12. Qxc2 {[%clk 0:03:58.5]} 12... Ne7 {[%clk 0:03:56.4]} 13. Qb3 {[%clk 0:03:54.6]} 13... Ng6 {[%clk 0:03:46.1]} 14. d5 {[%clk 0:03:51.1]} 14... Nf4 {[%clk 0:03:46.5]} 15. Bxf4 {[%clk 0:03:48.1]} 1-0

[Event "Live Chess"]
[Site "Chess.com"]
[Date "2010.12.30"]
[Round "-"]
[White "shipar"]
[Black "hipposcottimus"]
[Result "1-0"]
[CurrentPosition "rn1q1rk1/pp3ppp/8/4N3/1b2p3/4P3/PPPBQ1PP/R3K2R w KQ -"]
[Timezone "UTC"]
[ECO "D00"]
[ECOUrl "https://www.chess.com/openings/Queens-Pawn-Opening-1...d5-2.e3-c5"]
[UTCDate "2010.12.30"]
[UTCTime "00:59:53"]
[WhiteElo "1314"]
[BlackElo "1369"]
[TimeControl "720"]
[Termination "shipar won by resignation"]
[StartTime "00:59:53"]
[EndDate "2010.12.30"]
[EndTime "01:02:24"]
[Link "https://www.chess.com/game/live/82356697"]

1. d4 {[%clk 0:12:00]} 1... d5 {[%clk 0:12:00]} 2. e3 {[%clk 0:11:55.5]} 2... c5 {[%clk 0:11:57.4]} 3. dxc5 {[%clk 0:11:49.9]} 3... e5 {[%clk 0:11:54.1]} 4. Nf3 {[%clk 0:11:46]} 4... e4 {[%clk 0:11:49.9]} 5. Ne5 {[%clk 0:11:42]} 5... Bxc5 {[%clk 0:11:44.9]} 6. Nc3 {[%clk 0:11:31]} 6... Nf6 {[%clk 0:11:40.5]} 7. f3 {[%clk 0:11:21.5]} 7... exf3 {[%clk 0:11:31.5]} 8. Nxf3 {[%clk 0:11:18.9]} 8... Bg4 {[%clk 0:11:27]} 9. Be2 {[%clk 0:11:16.1]} 9... Bb4 {[%clk 0:11:23.4]} 10. Bd2 {[%clk 0:11:09.5]} 10... O-O {[%clk 0:11:20.6]} 11. Ne5 {[%clk 0:11:04.1]} 11... Bxe2 {[%clk 0:11:08.8]} 12. Qxe2 {[%clk 0:11:01.2]} 12... Ne4 {[%clk 0:11:06]} 13. Nxe4 {[%clk 0:10:56]} 13... dxe4 {[%clk 0:10:40.3]} 1-0

[Event "Live Chess"]
[Site "Chess.com"]
[Date "2010.12.30"]
[Round "-"]
[White "Rakafusko"]
[Black "hipposcottimus"]
[Result "1-0"]
[CurrentPosition "q5k1/6pp/2r2pb1/p1BRp3/2P5/1Q5P/5PP1/4R1K1 b - -"]
[Timezone "UTC"]
[ECO "C23"]
[ECOUrl "https://www.chess.com/openings/Bishops-Opening-2...Nc6"]
[UTCDate "2010.12.30"]
[UTCTime "00:01:58"]
[WhiteElo "1396"]
[BlackElo "1378"]
[TimeControl "600"]
[Termination "Rakafusko won by resignation"]
[StartTime "00:01:58"]
[EndDate "2010.12.30"]
[EndTime "00:13:54"]
[Link "https://www.chess.com/game/live/82343972"]

1. e4 {[%clk 0:10:00]} 1... e5 {[%clk 0:10:00]} 2. Bc4 {[%clk 0:09:53.7]} 2... Nc6 {[%clk 0:09:47.4]} 3. c3 {[%clk 0:09:50]} 3... Be7 {[%clk 0:09:22.1]} 4. Qf3 {[%clk 0:08:37]} 4... Nf6 {[%clk 0:09:07.9]} 5. h3 {[%clk 0:08:32.4]} 5... Na5 {[%clk 0:08:40.6]} 6. Bb3 {[%clk 0:08:25.5]} 6... Nxb3 {[%clk 0:08:37.7]} 7. axb3 {[%clk 0:08:23.1]} 7... d5 {[%clk 0:08:37.4]} 8. d3 {[%clk 0:08:12.7]} 8... dxe4 {[%clk 0:08:29.9]} 9. dxe4 {[%clk 0:08:10.5]} 9... b6 {[%clk 0:08:25.5]} 10. Ne2 {[%clk 0:07:58.4]} 10... Bb7 {[%clk 0:08:14.4]} 11. Nd2 {[%clk 0:07:45.2]} 11... a5 {[%clk 0:07:17.6]} 12. Ng3 {[%clk 0:07:41.4]} 12... Ba6 {[%clk 0:07:05.8]} 13. c4 {[%clk 0:07:22.9]} 13... b5 {[%clk 0:06:49.3]} 14. O-O {[%clk 0:07:19.3]} 14... bxc4 {[%clk 0:06:44.7]} 15. bxc4 {[%clk 0:07:16.4]} 15... Bb7 {[%clk 0:06:41.2]} 16. b3 {[%clk 0:07:12]} 16... O-O {[%clk 0:06:20]} 17. Rd1 {[%clk 0:07:08.2]} 17... Ra6 {[%clk 0:05:59.6]} 18. Ndf1 {[%clk 0:06:59.3]} 18... Qa8 {[%clk 0:05:56.8]} 19. Nd2 {[%clk 0:06:43.1]} 19... Bb4 {[%clk 0:05:47.3]} 20. Bb2 {[%clk 0:06:22.1]} 20... Bxd2 {[%clk 0:05:37.3]} 21. Rxd2 {[%clk 0:06:19.9]} 21... Nxe4 {[%clk 0:05:33.9]} 22. Nxe4 {[%clk 0:06:17.3]} 22... Bxe4 {[%clk 0:05:31.9]} 23. Qg3 {[%clk 0:06:16]} 23... f6 {[%clk 0:05:30.2]} 24. Re1 {[%clk 0:06:07.8]} 24... Bg6 {[%clk 0:05:20.6]} 25. Rd7 {[%clk 0:05:23.9]} 25... c5 {[%clk 0:05:00.7]} 26. Rd5 {[%clk 0:05:09.7]} 26... Rc6 {[%clk 0:04:19.4]} 27. Ba3 {[%clk 0:04:53.7]} 27... Rb8 {[%clk 0:04:02.3]} 28. Bxc5 {[%clk 0:04:27.2]} 28... Rxb3 {[%clk 0:03:55]} 29. Qxb3 {[%clk 0:04:23.5]} 1-0